fUST/lending_fUST_20240506
["ID","MTS","AMOUNT","RATE_DAILY","PERIOD"]
[326476172,1714977844098,154.67518212,9.999e-05,2]
[326476173,1714977845841,712.68814982,0.00017,2]
[326476174,1714977865888,712.68814982,0.00017,2]
[326476175,1714977888070,712.68814982,0.00017,2]
[326476176,1714977903864,712.68814982,0.00017,2]
[326476177,1714977924257,712.68814982,0.00017,2]
[326476178,1714977948262,712.68814982,0.00017,2]
[326476179,1714977968251,712.68814982,0.00017,2]
[326476180,1714977986460,712.68814982,0.00017,2]
[326476181,1714978003862,727.06877045,0.00017,2]
[326476182,1714978025955,816.50766108,9.999e-05,2]
[326476183,1714978031384,-1424.30004161,0.00017149,2]
[326476184,1714978031723,-1493.3459025,0.0001715,2]
[326476185,1714978032506,-163.73827253,0.00017152,2]
[326476186,1714978032722,-725.85143885,0.00017258,2]
[326476187,1714978032812,-1333.39961226,0.00017477,2]
[326476199,1714978150132,-23566.60038774,0.00017477,2]
[326476200,1714978150155,-929.7496234,0.0001766,2]
[326476201,1714978150179,-14800.42951643,0.00017828,2]
[326476202,1714978150202,-284.86290736,0.00017859,2]
[326476203,1714978150231,-182.08328321,0.00017959,2]
[326476204,1714978150253,-154.65974855,0.00018,2]
[326476205,1714978150277,-284.86290734,0.00018139,2]
[326476206,1714978150299,-153.0,0.000182,2]
[326476207,1714978150323,-153.0,0.000182,2]
[326476208,1714978150346,-306.0,0.000182,2]
[326476209,1714978150367,-154.67518212,0.00018217,2]
[326476210,1714978150388,-685.02436984,0.00018217,2]
[326476211,1714978150413,-153.0,0.00018278,2]
[326476212,1714978150435,-204.1020042,0.00018278,2]
[326476213,1714978150465,-153.0,0.00018278,2]
[326476214,1714978150488,-156.2515924,0.00018278,2]
[326476215,1714978150511,-203.8317051,0.00018278,2]
[326476216,1714978150534,-153.0,0.00018278,2]
[326476217,1714978150557,-203.9317258,0.00018278,2]
[326476218,1714978150580,-153.0,0.00018278,2]
[326476219,1714978150603,-153.0,0.000183,2]
[326476220,1714978150625,-284.86290734,0.00018419,2]
[326476221,1714978150651,-510.86003442,0.000186,2]
[326476222,1714978150673,-314.6315124,0.0001863,2]
[326476223,1714978150696,-284.86290734,0.00018698,2]
[326476224,1714978157487,153.0,0.000182,2]
[326476225,1714978166835,154.65974855,0.00018217,2]
[326476226,1714978172844,274.013356,0.00017951,2]
[326476227,1714978183475,154.65974855,0.00018217,2]
[326476228,1714978187028,12558.13422034,0.00017933,2]
[326476229,1714978187838,12341.86577966,0.00017933,2]
[326476230,1714978226743,250.0,0.00017951,2]
[326476259,1714978233582,-154.67518212,0.00018216,2]
[326476260,1714978233592,-154.65974855,0.00018217,2]
[326476261,1714978233601,-444.5,0.00018795,3]
[326476262,1714978233611,-9.24770734,0.00018813,3]
[326476319,1714978241131,-140.75229266,0.00018813,3]
[326476320,1714978241140,-808.15082924,0.00018824,2]
[326476321,1714978241149,-161.98182993,0.00018887,2]
[326476322,1714978241158,-1309.04298396,0.000189,2]
[326476323,1714978241168,-284.86290734,0.000189,2]
[326476324,1714978241187,-444.5,0.00018915,3]
[326476325,1714978241197,-150.0,0.00018932,3]
[326476326,1714978241206,-753.2,0.0001899,3]
[326476327,1714978241215,-376.6,0.0001899,3]
[326476328,1714978241224,-188.3,0.0001899,3]
[326476329,1714978241234,-564.94,0.0001899,3]
[326476330,1714978241243,-176.44293851,0.00018997,2]
[326476331,1714978241252,-10740.08614164,0.00019,2]
[326476370,1714978245670,-3720.52067861,0.00019,2]
[326476420,1714978286820,718.06665172,9.999e-05,2]
[326476421,1714978298024,469.89756862,9.999e-05,2]
[326476422,1714978298046,455.18222637,9.999e-05,2]
[326476423,1714978298915,2601.75544342,9.999e-05,2]
[326476424,1714978327976,284.29807878,9.999e-05,2]
[326476425,1714978330493,240.23693063,9.999e-05,2]
[326476426,1714978336732,1642.31272733,0.00015,2]
[326476427,1714978344119,469.39449574,9.999e-05,2]
[326476428,1714978351921,940.45532708,0.00015,2]
[326476429,1714978401771,154.65974855,9.999e-05,2]
[326476441,1714978478607,1000.0,9.994e-05,2]
[326476444,1714978528763,154.67518212,9.999e-05,2]
[326476446,1714978591847,4000.0,0.000169,4]
[326476447,1714978706768,816.50766108,9.999e-05,2]
[326476448,1714978740829,154.65974855,9.999e-05,2]
[326476449,1714978945998,1000.0,0.00026,120]
[326476450,1714978958607,1000.0,0.00025,60]
[326476451,1714978969103,1000.0,0.00024,60]
[326476452,1714978980310,1000.0,0.00023,59]
[326476453,1714978993862,1000.0,0.00022,19]
[326476454,1714979015942,521.74355414,9.999e-05,2]
[326476455,1714979058745,1000.0,0.00021,21]
[326476456,1714979181804,154.67518212,9.999e-05,2]
[326476457,1714979201872,348.299596,0.0001589,2]
[326476458,1714979232111,453.63326844,0.00017,2]
[326476459,1714979232197,-274.013356,0.00017759,2]
[326476460,1714979232222,-7859.62456639,0.00017771,2]
[326476461,1714979233345,1623.43487535,9.999e-05,2]
[326476462,1714979254113,-2281.19188454,0.00017771,2]
[326476463,1714979262547,893.97688809,0.00016,2]
[326476464,1714979293961,4234.1215094,0.00016,2]
[326476465,1714979293999,223.25724002,0.00016,2]
[326476466,1714979312492,1396.4736443,9.999e-05,2]
[326476467,1714979321170,473.60917883,9.999e-05,2]
[326476472,1714979325509,154.67518212,9.998e-05,2]
[326476473,1714979331231,2395.29274351,0.00015,2]
[326476476,1714979352988,584.11436245,9.999e-05,2]
[326476477,1714979358547,769.97551352,0.0001,2]
[326476489,1714979364053,-5547.72473969,0.00017771,2]
[326476490,1714979364614,-13734.61473559,0.00017772,2]
[326476492,1714979374137,-11165.38526441,0.00017772,2]
[326476493,1714979374159,-500.0,0.00017827,2]
[326476495,1714979376562,769.97551352,0.00017258,2]
[326476499,1714979420012,1781.9716408,9.999e-05,2]
[326476500,1714979421180,284.29807878,9.999e-05,2]
[326476501,1714979425603,154.67518212,0.00017258,2]
[326476502,1714979430700,465.09462597,9.999e-05,2]
[326476542,1714979433113,-1607.74201558,0.00018036,2]
[326476544,1714979433126,-15.69285977,0.00018036,2]
[326476545,1714979433135,-154.67518212,0.00018037,2]
[326476546,1714979433144,-208.30029827,0.00018038,2]
[326476547,1714979433154,-313.41621268,0.000181,2]
[326476548,1714979433163,-500.0,0.00018138,2]
[326476549,1714979433173,-500.0,0.00018138,2]
[326476550,1714979433182,-500.0,0.00018138,2]
[326476551,1714979433191,-500.0,0.00018138,2]
[326476552,1714979433201,-500.0,0.00018138,2]
[326476554,1714979433210,-500.0,0.00018138,2]
[326476556,1714979433219,-541.84320895,0.00018138,2]
[326476558,1714979433228,-658.72946128,0.00018138,2]
[326476559,1714979433237,-207.08633973,0.00018217,2]
[326476561,1714979433247,-929.47917741,0.00018217,2]
[326476562,1714979433256,-3212.88225682,0.000187,4]
[326476563,1714979433265,-498.9,0.00018734,3]
[326476564,1714979433274,-150.0,0.00018755,3]
[326476565,1714979433283,-498.9,0.0001886,3]
[326476566,1714979433293,-150.0,0.00018879,3]
[326476567,1714979433302,-11799.36850656,0.00018978,2]
[326476568,1714979433316,-498.9,0.00018986,3]
[326476569,1714979433325,-13479.61131133,0.00019,2]
[326476570,1714979433334,-500.0,0.00019,2]
[326476571,1714979433347,-1003.60331779,0.00019,2]
[326476572,1714979433357,-1000.0,0.00019,17]
[326476573,1714979433374,-1000.0,0.00019,4]
[326476574,1714979433392,-5000.0,0.00019002,2]
[326476575,1714979433402,-150.0,0.00019003,3]
[326476576,1714979433411,-823.375654,0.00019003,2]
[326476577,1714979433423,-523.944572,0.00019003,2]
[326476578,1714979433436,-523.944572,0.00019003,2]
[326476579,1714979433446,-823.375654,0.00019003,2]
[326476580,1714979433455,-151.0,0.00019003,2]
[326476581,1714979433465,-151.0,0.00019003,2]
[326476582,1714979433474,-341.068816,0.00019003,2]
[326476583,1714979433486,-161.24393,0.00019003,2]
[326476584,1714979433496,-161.24393,0.00019003,2]
[326476585,1714979433505,-890.88446,0.00019024,2]
[326476586,1714979433514,-152.086747,0.00019024,2]
[326476587,1714979433524,-890.88446,0.00019024,2]
[326476588,1714979433534,-260.98115,0.00019024,2]
[326476589,1714979433543,-151.405671,0.00019024,2]
[326476590,1714979433552,-595.247517,0.00019024,2]
[326476591,1714979433562,-151.0,0.00019024,2]
[326476592,1714979433572,-595.247517,0.00019024,2]
[326476593,1714979433582,-560.75,0.00019068,3]
[326476594,1714979433594,-280.37,0.00019068,3]
[326476595,1714979433604,-841.15,0.00019068,3]
[326476596,1714979433614,-863.87471166,0.00019074,2]
[326476597,1714979433624,-863.87471166,0.00019075,2]
[326476598,1714979433632,-863.87471166,0.00019075,2]
[326476599,1714979433642,-863.87471166,0.00019076,2]
[326476600,1714979433651,-151.0,0.00019076,2]
[326476601,1714979433660,-151.0,0.00019076,2]
[326476602,1714979433670,-151.520213,0.00019076,2]
[326476603,1714979433679,-151.0,0.00019076,2]
[326476604,1714979433688,-151.0,0.00019076,2]
[326476605,1714979433697,-658.474695,0.00019076,2]
[326476606,1714979433707,-658.474695,0.00019076,2]
[326476607,1714979433716,-658.474695,0.00019076,2]
[326476608,1714979433726,-658.474695,0.00019076,2]
[326476609,1714979433735,-225.819431,0.00019076,2]
[326476610,1714979433744,-233.652317,0.00019076,2]
[326476611,1714979433754,-233.652317,0.00019076,2]
[326476612,1714979433764,-233.652317,0.00019076,2]
[326476613,1714979433774,-233.652317,0.00019076,2]
[326476614,1714979433784,-151.0,0.00019076,2]
[326476615,1714979433795,-151.0,0.00019076,2]
[326476616,1714979433805,-151.0,0.00019076,2]
[326476617,1714979433815,-151.0,0.00019076,2]
[326476618,1714979433824,-280.712947,0.00019076,2]
[326476619,1714979433834,-280.712947,0.00019076,2]
[326476620,1714979433846,-280.712947,0.00019076,2]
[326476621,1714979433856,-280.712947,0.00019076,2]
[326476622,1714979433865,-151.0,0.00019076,2]
[326476623,1714979433875,-151.0,0.00019076,2]
[326476624,1714979433885,-151.0,0.00019076,2]
[326476625,1714979433895,-151.0,0.00019076,2]
[326476626,1714979433904,-151.584598,0.00019076,2]
[326476627,1714979433914,-890.88446,0.00019076,2]
[326476628,1714979433924,-890.88446,0.00019076,2]
[326476629,1714979433934,-890.88446,0.00019076,2]
[326476630,1714979433943,-890.88446,0.00019076,2]
[326476631,1714979433953,-595.247517,0.00019076,2]
[326476632,1714979433962,-151.0,0.00019076,2]
[326476633,1714979433972,-595.247517,0.00019076,2]
[326476634,1714979433982,-151.0,0.00019076,2]
[326476635,1714979433991,-595.247517,0.00019076,2]
[326476636,1714979434001,-595.247517,0.00019076,2]
[326476637,1714979434011,-151.0,0.00019076,2]
[326476638,1714979434021,-151.0,0.00019076,2]
[326476639,1714979434031,-823.375654,0.00019076,2]
[326476640,1714979434040,-523.944572,0.00019076,2]
[326476641,1714979434050,-823.375654,0.00019076,2]
[326476642,1714979434060,-523.944572,0.00019076,2]
[326476643,1714979434070,-523.944572,0.00019076,2]
[326476644,1714979434084,-823.375654,0.00019076,2]
[326476645,1714979434118,-523.944572,0.00019076,2]
[326476646,1714979434128,-823.375654,0.00019076,2]
[326476647,1714979434139,-523.944572,0.00019076,2]
[326476648,1714979434148,-823.375654,0.00019076,2]
[326476649,1714979434158,-523.944572,0.00019076,2]
[326476650,1714979434167,-823.375654,0.00019076,2]
[326476651,1714979434176,-151.0,0.00019076,2]
[326476652,1714979434186,-151.0,0.00019076,2]
[326476653,1714979434196,-151.0,0.00019076,2]
[326476654,1714979434205,-151.0,0.00019076,2]
[326476655,1714979434215,-151.0,0.00019076,2]
[326476656,1714979434224,-184.879466,0.00019076,2]
[326476657,1714979434234,-341.068816,0.00019076,2]
[326476658,1714979434244,-155.800737,0.00019076,2]
[326476659,1714979434253,-161.24393,0.00019076,2]
[326476660,1714979434262,-161.24393,0.00019076,2]
[326476661,1714979434272,-161.24393,0.00019076,2]
[326476662,1714979434281,-161.24393,0.00019076,2]
[326476663,1714979434290,-161.24393,0.00019076,2]
[326476664,1714979434299,-161.24393,0.00019076,2]
[326476665,1714979434311,-863.87471166,0.00019076,2]
[326476666,1714979434321,-863.87471166,0.00019077,2]
[326476667,1714979434330,-151.0,0.00019078,2]
[326476668,1714979434346,-151.0,0.00019078,2]
[326476669,1714979434357,-151.0,0.00019078,2]
[326476670,1714979434366,-151.0,0.00019078,2]
[326476671,1714979434377,-151.0,0.00019078,2]
[326476672,1714979434386,-151.0,0.00019078,2]
[326476673,1714979434397,-151.0,0.00019078,2]
[326476674,1714979434407,-151.0,0.00019078,2]
[326476675,1714979434417,-151.0,0.00019078,2]
[326476676,1714979434429,-156.260002,0.00019078,2]
[326476677,1714979434440,-658.474695,0.00019078,2]
[326476678,1714979434449,-658.474695,0.00019078,2]
[326476679,1714979434459,-658.474695,0.00019078,2]
[326476680,1714979434469,-658.474695,0.00019078,2]
[326476681,1714979434478,-658.474695,0.00019078,2]
[326476682,1714979434489,-658.474695,0.00019078,2]
[326476683,1714979434500,-658.474695,0.00019078,2]
[326476684,1714979434509,-658.474695,0.00019078,2]
[326476685,1714979434519,-658.474695,0.00019078,2]
[326476686,1714979434528,-658.474695,0.00019078,2]
[326476687,1714979434538,-658.474695,0.00019078,2]
[326476688,1714979434548,-658.474695,0.00019078,2]
[326476689,1714979434558,-233.652317,0.00019078,2]
[326476690,1714979434567,-233.652317,0.00019078,2]
[326476691,1714979434729,-233.652317,0.00019078,2]
[326476692,1714979434740,-233.652317,0.00019078,2]
[326476693,1714979434749,-233.652317,0.00019078,2]
[326476694,1714979434759,-233.652317,0.00019078,2]
[326476695,1714979434768,-233.652317,0.00019078,2]
[326476696,1714979434779,-233.652317,0.00019078,2]
[326476697,1714979434789,-233.652317,0.00019078,2]
[326476698,1714979434798,-151.0,0.00019078,2]
[326476699,1714979434808,-233.652317,0.00019078,2]
[326476700,1714979434818,-188.948132,0.00019078,2]
[326476701,1714979434828,-233.652317,0.00019078,2]
[326476702,1714979434842,-233.652317,0.00019078,2]
[326476703,1714979434853,-233.652317,0.00019078,2]
[326476704,1714979434862,-233.652317,0.00019078,2]
[326476705,1714979434871,-169.030222,0.00019078,2]
[326476706,1714979434880,-280.712947,0.00019078,2]
[326476707,1714979434890,-280.712947,0.00019078,2]
[326476708,1714979434902,-280.712947,0.00019078,2]
[326476709,1714979434912,-280.712947,0.00019078,2]
[326476710,1714979434922,-280.712947,0.00019078,2]
[326476711,1714979434932,-280.712947,0.00019078,2]
[326476712,1714979434942,-280.712947,0.00019078,2]
[326476713,1714979434951,-280.712947,0.00019078,2]
[326476714,1714979434961,-280.712947,0.00019078,2]
[326476715,1714979434971,-280.712947,0.00019078,2]
[326476716,1714979434980,-280.712947,0.00019078,2]
[326476717,1714979434990,-280.712947,0.00019078,2]
[326476718,1714979435000,-280.712947,0.00019078,2]
[326476719,1714979435011,-280.712947,0.00019078,2]
[326476720,1714979435021,-153.301788,0.00019078,2]
[326476721,1714979435030,-300.861449,0.00019078,2]
[326476722,1714979435040,-890.88446,0.00019078,2]
[326476723,1714979435049,-890.88446,0.00019078,2]
[326476724,1714979435058,-890.88446,0.00019078,2]
[326476725,1714979435068,-890.88446,0.00019078,2]
[326476726,1714979435077,-890.88446,0.00019078,2]
[326476727,1714979435086,-890.88446,0.00019078,2]
[326476728,1714979435100,-890.88446,0.00019078,2]
[326476729,1714979435109,-890.88446,0.00019078,2]
[326476730,1714979435119,-890.88446,0.00019078,2]
[326476731,1714979435129,-890.88446,0.00019078,2]
[326476732,1714979435139,-890.88446,0.00019078,2]
[326476733,1714979435148,-890.88446,0.00019078,2]
[326476734,1714979435157,-890.88446,0.00019078,2]
[326476735,1714979435166,-890.88445727,0.00019078,2]
[326476736,1714979435176,-595.247517,0.00019078,2]
[326476737,1714979435186,-151.0,0.00019078,2]
[326476738,1714979435197,-151.0,0.00019078,2]
[326476739,1714979435207,-595.247517,0.00019078,2]
[326476740,1714979435216,-151.0,0.00019078,2]
[326476741,1714979435226,-151.0,0.00019078,2]
[326476742,1714979435235,-595.247517,0.00019078,2]
[326476743,1714979435244,-151.0,0.00019078,2]
[326476744,1714979435253,-595.247517,0.00019078,2]
[326476745,1714979435263,-595.247517,0.00019078,2]
[326476746,1714979435272,-298.44298,0.00019078,2]
[326476747,1714979435281,-595.247517,0.00019078,2]
[326476748,1714979435291,-595.247517,0.00019078,2]
[326476749,1714979435301,-595.247517,0.00019078,2]
[326476750,1714979435314,-595.247517,0.00019078,2]
[326476751,1714979435324,-595.247517,0.00019078,2]
[326476752,1714979435334,-595.247517,0.00019078,2]
[326476753,1714979435349,-595.247517,0.00019078,2]
[326476754,1714979435358,-595.247517,0.00019078,2]
[326476755,1714979435367,-595.247522,0.00019078,2]
[326476756,1714979435376,-151.0,0.00019078,2]
[326476757,1714979435387,-151.0,0.00019078,2]
[326476758,1714979435398,-151.0,0.00019078,2]
[326476759,1714979435408,-151.827044,0.00019078,2]
[326476760,1714979435418,-523.944572,0.00019078,2]
[326476761,1714979435431,-523.944572,0.00019078,2]
[326476762,1714979435440,-823.375654,0.00019078,2]
[326476763,1714979435450,-523.944572,0.00019078,2]
[326476764,1714979435460,-823.375654,0.00019078,2]
[326476765,1714979435469,-823.375654,0.00019078,2]
[326476766,1714979435479,-523.944572,0.00019078,2]
[326476767,1714979435491,-523.944572,0.00019078,2]
[326476768,1714979435501,-823.375654,0.00019078,2]
[326476769,1714979435511,-523.944572,0.00019078,2]
[326476770,1714979435520,-823.375654,0.00019078,2]
[326476771,1714979435529,-823.375654,0.00019078,2]
[326476772,1714979435539,-523.944572,0.00019078,2]
[326476773,1714979435549,-823.375654,0.00019078,2]
[326476774,1714979435559,-523.944572,0.00019078,2]
[326476775,1714979435568,-823.375654,0.00019078,2]
[326476776,1714979435579,-523.944572,0.00019078,2]
[326476777,1714979435591,-823.375654,0.00019078,2]
[326476778,1714979435601,-523.944572,0.00019078,2]
[326476779,1714979435611,-823.375654,0.00019078,2]
[326476780,1714979435621,-523.944572,0.00019078,2]
[326476781,1714979435631,-823.375654,0.00019078,2]
[326476782,1714979435641,-523.94458,0.00019078,2]
[326476783,1714979435651,-823.375661,0.00019078,2]
[326476784,1714979435661,-151.0,0.00019078,2]
[326476785,1714979435671,-151.0,0.00019078,2]
[326476786,1714979435681,-151.0,0.00019078,2]
[326476787,1714979435692,-151.0,0.00019078,2]
[326476788,1714979435702,-151.0,0.00019078,2]
[326476789,1714979435713,-151.0,0.00019078,2]
[326476790,1714979435722,-161.24393,0.00019078,2]
[326476791,1714979435732,-161.24393,0.00019078,2]
[326476792,1714979435742,-161.24393,0.00019078,2]
[326476793,1714979435752,-161.24393,0.00019078,2]
[326476794,1714979435765,-161.24393,0.00019078,2]
[326476795,1714979435775,-161.24393,0.00019078,2]
[326476796,1714979435785,-161.24393,0.00019078,2]
[326476797,1714979435795,-161.24393,0.00019078,2]
[326476798,1714979435805,-161.24393,0.00019078,2]
[326476799,1714979435817,-161.24393,0.00019078,2]
[326476800,1714979435829,-161.24393,0.00019078,2]
[326476801,1714979435840,-161.243921,0.00019078,2]
[326476802,1714979435849,-2000.0,0.00019078,2]
[326476803,1714979435860,-2343.49406035,0.00019078,2]
[326476804,1714979435871,-151.0,0.00019083,2]
[326476805,1714979435881,-151.0,0.00019083,2]
[326476806,1714979435891,-658.474695,0.000191,2]
[326476807,1714979435902,-658.474695,0.000191,2]
[326476808,1714979435912,-233.652317,0.000191,2]
[326476809,1714979435922,-233.65232,0.000191,2]
[326476810,1714979435932,-280.712947,0.000191,2]
[326476811,1714979435943,-280.71294692,0.000191,2]
[326476812,1714979435953,-589.0,0.000191,2]
[326476813,1714979435963,-498.9,0.00019112,3]
[326476814,1714979435975,-150.0,0.00019127,3]
[326476815,1714979435986,-150.0,0.00019142,2]
[326476816,1714979435996,-493.0,0.00019142,2]
[326476817,1714979436006,-296.202,0.00019142,2]
[326476818,1714979436016,-311.0,0.00019157,2]
[326476819,1714979436026,-151.0,0.00019157,2]
[326476820,1714979436036,-151.0,0.00019157,2]
[326476821,1714979436046,-658.474695,0.00019157,2]
[326476822,1714979436056,-658.474686,0.00019157,2]
[326476823,1714979436066,-265.88911423,0.00019174,7]
[326476824,1714979436076,-154.85741724,0.00019174,2]
[326476825,1714979436086,-154.70605849,0.00019174,2]
[326476826,1714979436099,-331.77664907,0.00019174,2]
[326476827,1714979436110,-156.78690909,0.00019174,2]
[326476828,1714979436119,-274.58008651,0.00019174,2]
[326476829,1714979436131,-171.82135661,0.00019174,2]
[326476830,1714979436142,-3574.71407575,0.00019174,2]
[326476831,1714979436152,-152.889228,0.00019174,2]
[326476832,1714979436163,-154.115522,0.00019174,2]
[326476833,1714979436173,-1146.79943163,0.00019176,2]
[326476834,1714979436183,-186.38716009,0.00019176,2]
[326476835,1714979436192,-361.83407745,0.00019176,2]
[326476836,1714979436202,-157.00126861,0.00019176,2]
[326476837,1714979436212,-195.83262965,0.00019176,2]
[326476838,1714979436222,-547.17763004,0.00019176,2]
[326476839,1714979436231,-1694.695879,0.00019176,2]
[326476840,1714979436241,-155.83937496,0.00019176,2]
[326476841,1714979436251,-609.60172585,0.00019176,2]
[326476842,1714979436261,-441.82086666,0.00019176,2]
[326476843,1714979436271,-685.10970669,0.00019176,2]
[326476844,1714979436280,-155.36083243,0.00019176,2]
[326476845,1714979436290,-213.42058593,0.00019176,2]
[326476846,1714979436300,-234.39541533,0.00019176,2]
[326476847,1714979436311,-530.24215174,0.00019176,2]
[326476848,1714979436321,-180.38151205,0.00019176,2]
[326476849,1714979436332,-189.63101663,0.00019176,2]
[326476850,1714979436346,-207.79059137,0.00019176,2]
[326476851,1714979436357,-412.39463435,0.00019176,2]
[326476852,1714979436366,-1892.55333922,0.00019176,2]
[326476853,1714979436376,-317.18355015,0.00019176,2]
[326476854,1714979436387,-241.2049983,0.00019176,2]
[326476855,1714979436398,-252.82598548,0.00019176,2]
[326476856,1714979436408,-286.10366247,0.00019176,2]
[326476857,1714979436417,-1079.47305387,0.00019176,2]
[326476858,1714979436427,-189.57563388,0.00019176,2]
[326476859,1714979436437,-1582.13344643,0.00019176,2]
[326476860,1714979436447,-306.33066483,0.00019176,2]
[326476861,1714979436457,-770.92157227,0.00019176,2]
[326476862,1714979436467,-267.69002896,0.00019176,2]
[326476863,1714979436476,-370.13680072,0.00019176,2]
[326476864,1714979436489,-273.8094763,0.00019176,2]
[326476865,1714979436499,-186.28512001,0.00019176,2]
[326476866,1714979436509,-6682.7628109,0.00019176,2]
[326476867,1714979436519,-189.12101838,0.00019176,2]
[326476868,1714979436529,-3147.54265789,0.00019176,7]
[326476869,1714979436539,-322.02670522,0.00019176,2]
[326476870,1714979436549,-617.63803047,0.00019176,2]
[326476871,1714979436559,-1019.48649662,0.00019176,2]
[326476872,1714979436569,-154.73693487,0.00019176,2]
[326476873,1714979436580,-261.43216615,0.00019176,2]
[326476874,1714979436591,-752.67566071,0.00019176,2]
[326476875,1714979436600,-294.3418707,0.00019176,2]
[326476876,1714979436610,-1538.28373479,0.00019176,2]
[326476877,1714979436619,-1079.20558224,0.00019176,2]
[326476878,1714979436629,-245.67962833,0.00019176,2]
[326476879,1714979436639,-725.81159638,0.00019176,2]
[326476880,1714979436649,-686.62365281,0.00019176,2]
[326476881,1714979436666,-53.46606948,0.00019176,2]
[326476882,1714979436676,-289.30129252,0.00019176,2]
[326476979,1714979439695,-1562.57,0.00019,2]
[326476982,1714979440375,-3437.43,0.00019,2]
[326476983,1714979440385,-341.068816,0.00019003,2]
[326476984,1714979440395,-341.068816,0.00019076,2]
[326476985,1714979440406,-341.068816,0.00019076,2]
[326476986,1714979440415,-341.068816,0.00019076,2]
[326476987,1714979440425,-863.87471166,0.00019077,2]
[326476988,1714979440434,-6493.6468134,0.00019078,2]
[326476989,1714979440622,-17423.25707027,0.00019078,2]
[326477004,1714979449498,252.70715286,0.00017258,2]
[326477005,1714979512304,3455.83254005,9.999e-05,2]
[326477006,1714979522160,3455.83254005,9.999e-05,2]
[326477007,1714979527251,3209.03695713,9.999e-05,2]
[326477008,1714979527282,246.79558292,9.999e-05,2]
[326477009,1714979537812,3455.83254005,9.999e-05,2]
[326477011,1714979546366,3455.83254005,9.999e-05,2]
[326477012,1714979551800,3455.83254005,9.999e-05,2]
[326477013,1714979563458,3455.83254005,9.999e-05,2]
[326477014,1714979618318,154.67518212,9.999e-05,2]
[326477018,1714979702484,521.74355414,9.999e-05,2]
[326477019,1714979723060,282.927855,0.0001589,2]
[326477021,1714980013402,155.32305275,0.0001589,2]
[326477022,1714980046278,816.12984113,9.999e-05,2]
[326477023,1714980046951,1578.28854487,9.999e-05,2]
[326477024,1714980059944,154.67518212,9.999e-05,2]
[326477025,1714980124133,154.67518212,9.999e-05,2]
[326477026,1714980242732,154.67518212,9.999e-05,2]
[326477029,1714980409901,165.03037246,0.000137,2]
[326477030,1714980425880,-3426.81495983,0.00017519,2]
[326477031,1714980431512,-368.20441708,0.00017519,2]
[326477032,1714980463979,217.0,0.00017,2]
[326477033,1714980559378,-165.03037246,0.00017518,2]
[326477034,1714980559404,-13450.90995177,0.00017519,2]
[326477035,1714980561452,-7654.07067132,0.00017519,2]
[326477036,1714980561474,-2482.97332304,0.00017654,2]
[326477037,1714980561495,-276.76675,0.00017656,2]
[326477038,1714980561516,-254.3958981,0.00017894,2]
[326477041,1714980611261,159.6498128,0.00017,2]
[326477042,1714980615605,276.76675,0.00017937,2]
[326477043,1714980618526,671.02480693,0.00017,2]
[326477066,1714980634879,-345.1,0.00018713,3]
[326477068,1714980634889,-154.67518212,0.00018725,2]
[326477070,1714980634899,-460.35805157,0.00018726,2]
[326477072,1714980634908,-150.0,0.00018728,3]
[326477074,1714980634918,-345.1,0.00018841,3]
[326477076,1714980634928,-150.0,0.00018855,3]
[326477078,1714980634937,-500.0,0.00018878,2]
[326477080,1714980634947,-150.0,0.000189,2]
[326477082,1714980634956,-204.1020042,0.00018932,2]
[326477084,1714980634966,-153.0,0.00018932,2]
[326477086,1714980634975,-153.0,0.00018932,2]